[Event "*** Titled Tuesday 3|2 Blitz"]
[Site "Chess.com"]
[Date "2016.09.06"]
[Round "8"]
[White "hypert"]
[Black "VMikhalevski"]
[Result "0-1"]
[WhiteElo "2333"]
[BlackElo "2440"]
[TimeControl "180+2"]
[EndTime "12:36:19 PDT"]
[Termination "VMikhalevski won by resignation"]

1. e4 {[%clk 0:03:01.9]} 1... e5 {[%clk 0:02:59.3]} 2. Nf3 {[%clk 0:03:02.8]}
2... Nc6 {[%clk 0:03:01]} 3. Bb5 {[%clk 0:03:03.3]} 3... Nf6 {[%clk 0:03:01.3]}
4. d3 {[%clk 0:02:59.2]} 4... d6 {[%clk 0:03:01.4]} 5. h3 {[%clk 0:02:56.1]}
5... g6 {[%clk 0:03:01.9]} 6. Nc3 {[%clk 0:02:56.9]} 6... Bg7 {[%clk 0:03:03.4]}
7. O-O {[%clk 0:02:55.3]} 7... O-O {[%clk 0:03:03.7]} 8. Bxc6 {[%clk 0:02:53.4]}
8... bxc6 {[%clk 0:03:04]} 9. d4 {[%clk 0:02:55]} 9... exd4 {[%clk 0:03:02.3]}
10. Nxd4 {[%clk 0:02:55.9]} 10... Bb7 {[%clk 0:03:04]} 11. Re1 {[%clk
0:02:55.6]} 11... Re8 {[%clk 0:03:03.6]} 12. Nb3 {[%clk 0:02:53.9]} 12... c5
{[%clk 0:03:02.2]} 13. f3 {[%clk 0:02:52.9]} 13... a5 {[%clk 0:03:02.4]} 14. Bg5
{[%clk 0:02:50]} 14... h6 {[%clk 0:03:00.4]} 15. Bh4 {[%clk 0:02:47.7]} 15... a4
{[%clk 0:02:50.9]} 16. Nd2 {[%clk 0:02:48.2]} 16... a3 {[%clk 0:02:52]} 17. b3
{[%clk 0:02:48.7]} 17... g5 {[%clk 0:02:52.4]} 18. Bf2 {[%clk 0:02:49.2]} 18...
Nh5 {[%clk 0:02:47.4]} 19. Ne2 {[%clk 0:02:33.6]} 19... Bxa1 {[%clk 0:02:46.3]}
20. Qxa1 {[%clk 0:02:35.5]} 20... Qf6 {[%clk 0:02:46.7]} 21. Qc1 {[%clk
0:02:29.4]} 21... Qb2 {[%clk 0:02:43.2]} 22. Qd1 {[%clk 0:02:22.8]} 22... Ba6
{[%clk 0:02:43.6]} 23. c4 {[%clk 0:02:16.3]} 23... Qxa2 {[%clk 0:02:29.7]} 24.
Nc3 {[%clk 0:02:15.3]} 24... Qb2 {[%clk 0:02:30.3]} 25. Nd5 {[%clk 0:02:08.9]}
25... a2 {[%clk 0:02:23.9]} 26. Nxc7 {[%clk 0:01:46.6]} 26... Bb7 {[%clk
0:02:24.4]} 27. Nxa8 {[%clk 0:01:43.8]} 27... Rxa8 {[%clk 0:02:24.2]} 0-1

[Event "*** Titled Tuesday 3|2 Blitz"]
[Site "Chess.com"]
[Date "2016.09.06"]
[Round "8"]
[White "Maitreia"]
[Black "NTBT_DHS"]
[Result "0-1"]
[WhiteElo "2405"]
[BlackElo "2528"]
[TimeControl "180+2"]
[EndTime "12:36:57 PDT"]
[Termination "NTBT_DHS won by resignation"]

1. c4 {[%clk 0:03:01.9]} 1... Nf6 {[%clk 0:03:01]} 2. Nc3 {[%clk 0:03:02.2]}
2... g6 {[%clk 0:03:02.4]} 3. g3 {[%clk 0:03:03.2]} 3... Bg7 {[%clk 0:03:03.5]}
4. Bg2 {[%clk 0:03:04.6]} 4... O-O {[%clk 0:03:05.2]} 5. Nf3 {[%clk 0:03:06.2]}
5... d6 {[%clk 0:03:06.7]} 6. O-O {[%clk 0:03:07.7]} 6... Nc6 {[%clk 0:03:06]}
7. Rb1 {[%clk 0:03:07.6]} 7... e5 {[%clk 0:03:06.2]} 8. d3 {[%clk 0:03:08.5]}
8... h6 {[%clk 0:03:07]} 9. b4 {[%clk 0:03:09.3]} 9... Be6 {[%clk 0:03:08.5]}
10. b5 {[%clk 0:03:10.1]} 10... Ne7 {[%clk 0:03:10]} 11. a4 {[%clk 0:03:11.1]}
11... Qc8 {[%clk 0:03:10.4]} 12. Re1 {[%clk 0:03:12.1]} 12... Bh3 {[%clk
0:03:10.9]} 13. Bh1 {[%clk 0:03:13.3]} 13... Ng4 {[%clk 0:03:12.4]} 14. Ba3
{[%clk 0:03:13.3]} 14... Qe6 {[%clk 0:02:41.9]} 15. Qb3 {[%clk 0:03:11.4]} 15...
c5 {[%clk 0:02:40.8]} 16. bxc6 {[%clk 0:03:11.3]} 16... bxc6 {[%clk 0:02:42.2]}
17. a5 {[%clk 0:03:04.5]} 17... Kh7 {[%clk 0:02:37.6]} 18. a6 {[%clk 0:03:05.2]}
18... f5 {[%clk 0:02:38.5]} 19. Nd2 {[%clk 0:03:05.7]} 19... h5 {[%clk
0:02:27.9]} 20. Qb7 {[%clk 0:02:46.6]} 20... e4 {[%clk 0:02:21.8]} 21. Ncxe4
{[%clk 0:02:45.5]} 21... fxe4 {[%clk 0:02:21.4]} 22. Nxe4 {[%clk 0:02:47.4]}
22... Bd4 {[%clk 0:00:55.8]} 23. e3 {[%clk 0:02:34.7]} 23... Rxf2 {[%clk
0:00:56.9]} 24. Ng5+ {[%clk 0:02:28.6]} 24... Kh6 {[%clk 0:00:58.2]} 25. Nxe6
{[%clk 0:02:28.3]} 25... Rf1+ {[%clk 0:00:59.4]} 0-1

[Event "*** Titled Tuesday 3|2 Blitz"]
[Site "Chess.com"]
[Date "2016.09.06"]
[Round "8"]
[White "DanielNaroditsky"]
[Black "Abdodi"]
[Result "1-0"]
[WhiteElo "2731"]
[BlackElo "1981"]
[TimeControl "180+2"]
[EndTime "12:37:25 PDT"]
[Termination "DanielNaroditsky won by resignation"]

1. d4 {[%clk 0:03:02]} 1... Nf6 {[%clk 0:02:55.2]} 2. c4 {[%clk 0:02:58.8]} 2...
e6 {[%clk 0:02:41.2]} 3. Nc3 {[%clk 0:02:59.6]} 3... Bb4 {[%clk 0:02:41.1]} 4.
f3 {[%clk 0:03:01.1]} 4... d5 {[%clk 0:02:34.6]} 5. a3 {[%clk 0:03:02.5]} 5...
Bxc3+ {[%clk 0:02:32.2]} 6. bxc3 {[%clk 0:03:04.4]} 6... O-O {[%clk 0:02:27]} 7.
cxd5 {[%clk 0:03:04.9]} 7... exd5 {[%clk 0:02:27.2]} 8. e3 {[%clk 0:03:06.1]}
8... Re8 {[%clk 0:02:26.6]} 9. Bd3 {[%clk 0:03:07.1]} 9... c5 {[%clk 0:02:24.3]}
10. Ne2 {[%clk 0:03:08.7]} 10... c4 {[%clk 0:02:22.7]} 11. Bc2 {[%clk
0:03:08.1]} 11... Nbd7 {[%clk 0:02:21.3]} 12. O-O {[%clk 0:03:09.6]} 12... Nf8
{[%clk 0:02:22]} 13. g4 {[%clk 0:03:10.4]} 13... Nxg4 {[%clk 0:02:21.1]} 14.
fxg4 {[%clk 0:03:11.4]} 14... Bxg4 {[%clk 0:02:22.4]} 15. Qe1 {[%clk 0:03:13.3]}
15... Qa5 {[%clk 0:02:16]} 16. Nf4 {[%clk 0:03:14.1]} 16... Ng6 {[%clk
0:02:12.9]} 17. Bd2 {[%clk 0:03:16]} 17... Rad8 {[%clk 0:02:03]} 18. Qg3 {[%clk
0:03:17.4]} 18... Bc8 {[%clk 0:02:00.1]} 19. Nh5 {[%clk 0:03:18.2]} 19... Qb6
{[%clk 0:01:54.3]} 20. Rab1 {[%clk 0:03:17.7]} 20... Qd6 {[%clk 0:01:49.5]} 21.
Rf2 {[%clk 0:03:14.1]} 21... Qxa3 {[%clk 0:01:45.1]} 22. Rbf1 {[%clk 0:03:15.2]}
22... Rf8 {[%clk 0:01:40]} 23. h4 {[%clk 0:03:14.7]} 23... Qd6 {[%clk
0:01:39.5]} 24. Nf4 {[%clk 0:03:10.9]} 24... Nxf4 {[%clk 0:01:31.9]} 25. Rxf4
{[%clk 0:03:12.8]} 25... f5 {[%clk 0:01:28.5]} 26. h5 {[%clk 0:03:12.9]} 26...
Rde8 {[%clk 0:01:23.4]} 27. Be1 {[%clk 0:03:14]} 27... Qe7 {[%clk 0:01:17.9]}
28. R1f3 {[%clk 0:03:15]} 28... h6 {[%clk 0:01:13.3]} 29. Qg2 {[%clk 0:03:16.5]}
29... Kh8 {[%clk 0:01:06.2]} 30. Bh4 {[%clk 0:03:17.2]} 30... Qf7 {[%clk
0:01:05.6]} 31. Bxf5 {[%clk 0:03:17.9]} 31... Qxh5 {[%clk 0:01:00.9]} 32. Bg6
{[%clk 0:03:18.1]} 32... Rxf4 {[%clk 0:00:48.7]} 33. Bxh5 {[%clk 0:03:19.4]}
33... Rxh4 {[%clk 0:00:49.3]} 34. Bxe8 {[%clk 0:03:20.3]} 34... Rg4 {[%clk
0:00:50.5]} 35. Rg3 {[%clk 0:03:21.8]} 1-0

[Event "*** Titled Tuesday 3|2 Blitz"]
[Site "Chess.com"]
[Date "2016.09.06"]
[Round "8"]
[White "Mepetmepe"]
[Black "igorkovalenko"]
[Result "0-1"]
[WhiteElo "2390"]
[BlackElo "2611"]
[TimeControl "180+2"]
[EndTime "12:37:41 PDT"]
[Termination "igorkovalenko won on time"]

1. Nf3 {[%clk 0:03:01.9]} 1... e6 {[%clk 0:03:01.9]} 2. c4 {[%clk 0:03:02]} 2...
d5 {[%clk 0:03:02.9]} 3. g3 {[%clk 0:03:03.2]} 3... Nf6 {[%clk 0:03:04]} 4. Bg2
{[%clk 0:03:04.3]} 4... Be7 {[%clk 0:03:04.4]} 5. d4 {[%clk 0:03:04.4]} 5... O-O
{[%clk 0:03:06.3]} 6. O-O {[%clk 0:03:05.6]} 6... dxc4 {[%clk 0:03:07.5]} 7. Qc2
{[%clk 0:03:06.9]} 7... b5 {[%clk 0:03:08.6]} 8. a4 {[%clk 0:03:05.2]} 8... b4
{[%clk 0:03:10]} 9. Qxc4 {[%clk 0:02:56.6]} 9... Ba6 {[%clk 0:03:10.5]} 10. Qc2
{[%clk 0:02:56.6]} 10... b3 {[%clk 0:03:10.6]} 11. Qd1 {[%clk 0:02:54.9]} 11...
Nc6 {[%clk 0:03:10.9]} 12. Nc3 {[%clk 0:02:54.2]} 12... Rb8 {[%clk 0:03:10.1]}
13. Re1 {[%clk 0:02:48.1]} 13... Nb4 {[%clk 0:03:09]} 14. Rb1 {[%clk 0:02:42.3]}
14... Nc2 {[%clk 0:03:08.3]} 15. Rf1 {[%clk 0:02:43.5]} 15... c5 {[%clk
0:03:00.7]} 16. Bf4 {[%clk 0:02:41.1]} 16... Rb4 {[%clk 0:03:01.4]} 17. dxc5
{[%clk 0:01:53.5]} 17... Bxc5 {[%clk 0:03:03.3]} 18. Qxd8 {[%clk 0:01:44.7]}
18... Rxd8 {[%clk 0:03:05.2]} 19. Rfd1 {[%clk 0:01:46.1]} 19... Rc8 {[%clk
0:03:03.9]} 20. Ne5 {[%clk 0:01:40.6]} 20... h6 {[%clk 0:02:45.3]} 21. Nd3
{[%clk 0:01:15.5]} 21... Bxd3 {[%clk 0:02:45]} 22. Rxd3 {[%clk 0:01:17.4]} 22...
g5 {[%clk 0:02:44.5]} 23. Bd2 {[%clk 0:01:09.7]} 23... Ng4 {[%clk 0:02:43]} 24.
e3 {[%clk 0:01:04.5]} 24... Ne5 {[%clk 0:02:43.5]} 25. Be4 {[%clk 0:00:26]}
25... Nxd3 {[%clk 0:02:43.5]} 26. Bxd3 {[%clk 0:00:27.9]} 26... Rd8 {[%clk
0:02:44.7]} 27. Ne4 {[%clk 0:00:11.2]} 27... Rxd3 {[%clk 0:02:45.1]} 0-1

[Event "*** Titled Tuesday 3|2 Blitz"]
[Site "Chess.com"]
[Date "2016.09.06"]
[Round "8"]
[White "Wolverine_master"]
[Black "geordie_derraugh"]
[Result "0-1"]
[WhiteElo "2036"]
[BlackElo "2191"]
[TimeControl "180+2"]
[EndTime "12:38:54 PDT"]
[Termination "geordie_derraugh won by resignation"]

1. e4 {[%clk 0:03:01.9]} 1... c5 {[%clk 0:02:55.2]} 2. Nf3 {[%clk 0:03:02.9]}
2... d6 {[%clk 0:02:55.5]} 3. d4 {[%clk 0:03:03.9]} 3... cxd4 {[%clk 0:02:56.3]}
4. Nxd4 {[%clk 0:03:04.7]} 4... Nf6 {[%clk 0:02:57.1]} 5. Nc3 {[%clk 0:03:05.8]}
5... a6 {[%clk 0:02:57.7]} 6. Bg5 {[%clk 0:03:05.8]} 6... e6 {[%clk 0:02:58.5]}
7. f4 {[%clk 0:03:06.8]} 7... Qc7 {[%clk 0:02:59.2]} 8. Qf3 {[%clk 0:03:05.9]}
8... b5 {[%clk 0:03:00.2]} 9. O-O-O {[%clk 0:03:00.3]} 9... b4 {[%clk 0:03:01]}
10. Nce2 {[%clk 0:02:58.3]} 10... Bb7 {[%clk 0:03:00.3]} 11. Bxf6 {[%clk
0:02:56]} 11... gxf6 {[%clk 0:03:01]} 12. g4 {[%clk 0:02:53.6]} 12... Nd7 {[%clk
0:03:00.2]} 13. Ng3 {[%clk 0:02:54.4]} 13... Rc8 {[%clk 0:02:45.1]} 14. Bd3
{[%clk 0:02:55.1]} 14... Qb6 {[%clk 0:02:23.8]} 15. Nde2 {[%clk 0:02:21.9]}
15... b3 {[%clk 0:02:05.1]} 16. axb3 {[%clk 0:02:19.2]} 16... Qxb3 {[%clk
0:02:06]} 17. Kb1 {[%clk 0:02:11.4]} 17... Qb6 {[%clk 0:02:06.3]} 18. g5 {[%clk
0:02:05.7]} 18... f5 {[%clk 0:01:51.4]} 19. Qh5 {[%clk 0:02:01]} 19... Bg7
{[%clk 0:01:49.1]} 20. c3 {[%clk 0:01:57.2]} 20... Rb8 {[%clk 0:01:43]} 21. exf5
{[%clk 0:01:53.4]} 21... Bxh1 {[%clk 0:01:41.1]} 22. Rd2 {[%clk 0:01:47.9]}
22... Bd5 {[%clk 0:01:39.3]} 23. fxe6 {[%clk 0:01:45.6]} 23... Bxe6 {[%clk
0:01:36.7]} 24. f5 {[%clk 0:01:46.6]} 24... Bb3 {[%clk 0:01:26.4]} 25. Nf4
{[%clk 0:00:53.8]} 25... Be5 {[%clk 0:01:00.1]} 26. Ne6 {[%clk 0:00:43.1]} 26...
Bxc3 {[%clk 0:00:53.4]} 27. Re2 {[%clk 0:00:39.3]} 27... Qg1+ {[%clk 0:00:53.9]}
0-1

[Event "*** Titled Tuesday 3|2 Blitz"]
[Site "Chess.com"]
[Date "2016.09.06"]
[Round "8"]
[White "RodinMihail"]
[Black "biostatistician"]
[Result "1-0"]
[WhiteElo "2343"]
[BlackElo "2361"]
[TimeControl "180+2"]
[EndTime "12:39:15 PDT"]
[Termination "RodinMihail won by resignation"]

1. e4 {[%clk 0:03:01.9]} 1... e6 {[%clk 0:03:00.9]} 2. d4 {[%clk 0:03:02.1]}
2... d5 {[%clk 0:03:02.8]} 3. Nd2 {[%clk 0:03:03.2]} 3... Nc6 {[%clk 0:03:03.4]}
4. c3 {[%clk 0:03:03.6]} 4... e5 {[%clk 0:03:03.4]} 5. exd5 {[%clk 0:03:05.3]}
5... Qxd5 {[%clk 0:03:04.9]} 6. Ngf3 {[%clk 0:03:07.2]} 6... exd4 {[%clk
0:03:05.8]} 7. Bc4 {[%clk 0:03:09.1]} 7... Qh5 {[%clk 0:03:06.7]} 8. O-O {[%clk
0:03:11]} 8... Be6 {[%clk 0:03:07.5]} 9. Bxe6 {[%clk 0:03:11]} 9... fxe6 {[%clk
0:03:09.4]} 10. cxd4 {[%clk 0:03:10.6]} 10... O-O-O {[%clk 0:03:09.7]} 11. Qa4
{[%clk 0:03:11.5]} 11... Nf6 {[%clk 0:03:07.8]} 12. Re1 {[%clk 0:03:11.7]} 12...
Bd6 {[%clk 0:02:55.5]} 13. Nc4 {[%clk 0:03:11.8]} 13... Rhe8 {[%clk 0:02:45.4]}
14. Nxd6+ {[%clk 0:03:09.8]} 14... Rxd6 {[%clk 0:02:47.3]} 15. Bf4 {[%clk
0:03:07.5]} 15... Rd5 {[%clk 0:02:45.6]} 16. Rac1 {[%clk 0:03:07.4]} 16... Ra5
{[%clk 0:02:41.7]} 17. Qb3 {[%clk 0:02:58]} 17... Qd5 {[%clk 0:02:31.2]} 18. Qd3
{[%clk 0:02:43.1]} 18... Rxa2 {[%clk 0:02:17.4]} 19. Rc5 {[%clk 0:02:22.6]}
19... Qd7 {[%clk 0:02:06.3]} 20. Rec1 {[%clk 0:02:18.6]} 20... Nd5 {[%clk
0:02:05.2]} 21. Bg3 {[%clk 0:02:14.3]} 21... Rd8 {[%clk 0:01:58.4]} 22. Qb3
{[%clk 0:02:03.1]} 22... Ra6 {[%clk 0:01:56.2]} 23. h3 {[%clk 0:02:03.7]} 23...
Rb6 {[%clk 0:01:57]} 24. Qa4 {[%clk 0:01:56.9]} 24... Ra6 {[%clk 0:01:45.6]} 25.
Qc2 {[%clk 0:01:54.3]} 25... Rb6 {[%clk 0:01:37.8]} 26. Qxh7 {[%clk 0:01:52.3]}
26... Rxb2 {[%clk 0:01:31.7]} 27. Rxc6 {[%clk 0:01:48.7]} 27... bxc6 {[%clk
0:01:28.8]} 28. Ne5 {[%clk 0:01:49.7]} 28... Nf6 {[%clk 0:01:16]} 29. Qd3 {[%clk
0:01:34.6]} 29... Qxd4 {[%clk 0:01:04.7]} 30. Qa6+ {[%clk 0:01:35.2]} 30... Rb7
{[%clk 0:01:04.7]} 31. Rb1 {[%clk 0:01:14.3]} 31... Qb6 {[%clk 0:00:43.6]} 32.
Rxb6 {[%clk 0:01:14.7]} 32... axb6 {[%clk 0:00:37.4]} 33. Nxc6 {[%clk
0:01:13.3]} 33... Rd1+ {[%clk 0:00:33.4]} 34. Kh2 {[%clk 0:01:14.2]} 34... Ne4
{[%clk 0:00:34.6]} 35. Qa8+ {[%clk 0:01:12.9]} 35... Kd7 {[%clk 0:00:35]} 1-0

[Event "*** Titled Tuesday 3|2 Blitz"]
[Site "Chess.com"]
[Date "2016.09.06"]
[Round "8"]
[White "Pudor"]
[Black "mwpchess"]
[Result "0-1"]
[WhiteElo "2372"]
[BlackElo "2436"]
[TimeControl "180+2"]
[EndTime "12:39:59 PDT"]
[Termination "mwpchess won by resignation"]

1. d4 {[%clk 0:03:02]} 1... Nf6 {[%clk 0:02:58.4]} 2. c4 {[%clk 0:03:02.3]} 2...
e6 {[%clk 0:02:59.2]} 3. Nc3 {[%clk 0:03:02.9]} 3... Bb4 {[%clk 0:02:59.6]} 4.
Qc2 {[%clk 0:03:03.9]} 4... O-O {[%clk 0:02:59.8]} 5. a3 {[%clk 0:03:03.4]} 5...
Bxc3+ {[%clk 0:03:00.4]} 6. Qxc3 {[%clk 0:03:05.3]} 6... b6 {[%clk 0:03:00.9]}
7. Bg5 {[%clk 0:03:06.3]} 7... Bb7 {[%clk 0:03:00.8]} 8. e3 {[%clk 0:03:05.2]}
8... d6 {[%clk 0:02:58.7]} 9. Ne2 {[%clk 0:03:05.6]} 9... Nbd7 {[%clk
0:02:58.9]} 10. Qd3 {[%clk 0:03:06.3]} 10... Rc8 {[%clk 0:02:56.8]} 11. Nc3
{[%clk 0:03:07.3]} 11... c5 {[%clk 0:02:49.7]} 12. Rd1 {[%clk 0:03:07.4]} 12...
cxd4 {[%clk 0:02:43.2]} 13. Qxd4 {[%clk 0:03:08.2]} 13... d5 {[%clk 0:02:41.9]}
14. cxd5 {[%clk 0:03:05.5]} 14... exd5 {[%clk 0:02:35.6]} 15. Be2 {[%clk
0:03:03.6]} 15... h6 {[%clk 0:02:35.8]} 16. Bh4 {[%clk 0:03:03.9]} 16... Re8
{[%clk 0:02:15.3]} 17. O-O {[%clk 0:03:03.3]} 17... Qe7 {[%clk 0:02:14]} 18. Bb5
{[%clk 0:02:20.2]} 18... Qe6 {[%clk 0:01:37.6]} 19. Bxd7 {[%clk 0:01:42.9]}
19... Nxd7 {[%clk 0:01:37.7]} 20. Nxd5 {[%clk 0:01:44]} 20... Ne5 {[%clk
0:01:36.7]} 21. Nf4 {[%clk 0:01:39.4]} 21... Qg4 {[%clk 0:01:25.6]} 22. Bg3
{[%clk 0:01:28.3]} 22... Nf3+ {[%clk 0:01:01.2]} 23. gxf3 {[%clk 0:01:29.2]}
23... Qxf3 {[%clk 0:01:02.1]} 24. Nd5 {[%clk 0:01:30.2]} 24... Rcd8 {[%clk
0:00:54.9]} 25. e4 {[%clk 0:01:23.3]} 25... Rxe4 {[%clk 0:00:33.4]} 26. Ne7+
{[%clk 0:00:59.7]} 26... Rxe7 {[%clk 0:00:16.7]} 27. Qxd8+ {[%clk 0:01:00.7]}
27... Re8 {[%clk 0:00:15.2]} 28. Qxe8+ {[%clk 0:00:54.8]} 28... Kh7 {[%clk
0:00:16.4]} 0-1

[Event "*** Titled Tuesday 3|2 Blitz"]
[Site "Chess.com"]
[Date "2016.09.06"]
[Round "8"]
[White "Astaneh"]
[Black "Misha_Bilous"]
[Result "1-0"]
[WhiteElo "2500"]
[BlackElo "2366"]
[TimeControl "180+2"]
[EndTime "12:40:03 PDT"]
[Termination "Astaneh won by checkmate"]

1. e4 {[%clk 0:03:02]} 1... c5 {[%clk 0:03:00.6]} 2. Nf3 {[%clk 0:02:53.4]} 2...
Nc6 {[%clk 0:03:01.2]} 3. c3 {[%clk 0:02:52.7]} 3... Nf6 {[%clk 0:03:00.1]} 4.
Bd3 {[%clk 0:02:52]} 4... d5 {[%clk 0:02:48.8]} 5. e5 {[%clk 0:02:52.3]} 5...
Ng4 {[%clk 0:02:39]} 6. Bb5 {[%clk 0:02:51.5]} 6... Bd7 {[%clk 0:02:27.2]} 7.
Bxc6 {[%clk 0:02:43.3]} 7... Bxc6 {[%clk 0:02:26.2]} 8. e6 {[%clk 0:02:44.6]}
8... fxe6 {[%clk 0:02:06.8]} 9. Ng5 {[%clk 0:02:44.9]} 9... Nf6 {[%clk 0:02:07]}
10. d4 {[%clk 0:02:35.2]} 10... cxd4 {[%clk 0:01:48]} 11. cxd4 {[%clk
0:02:37.1]} 11... Qd6 {[%clk 0:01:41.8]} 12. O-O {[%clk 0:02:36]} 12... e5
{[%clk 0:01:32.2]} 13. dxe5 {[%clk 0:02:33.4]} 13... Qxe5 {[%clk 0:01:34.1]} 14.
Re1 {[%clk 0:02:29.9]} 14... Qf5 {[%clk 0:01:22.6]} 15. Ne6 {[%clk 0:02:23.8]}
15... Rc8 {[%clk 0:01:11.2]} 16. Nc3 {[%clk 0:02:11.4]} 16... Ne4 {[%clk
0:00:57.9]} 17. Nxe4 {[%clk 0:01:53.9]} 17... Qxe6 {[%clk 0:00:35]} 18. Ng5
{[%clk 0:01:54.2]} 18... Qf5 {[%clk 0:00:31.6]} 19. Qd4 {[%clk 0:01:51.5]} 19...
Qf6 {[%clk 0:00:21.1]} 20. Qg4 {[%clk 0:01:33.7]} 20... Bd7 {[%clk 0:00:17.9]}
21. Qg3 {[%clk 0:01:32.6]} 21... e6 {[%clk 0:00:15.8]} 22. Bf4 {[%clk
0:01:32.5]} 22... Bb4 {[%clk 0:00:15.3]} 23. Be5 {[%clk 0:01:31.1]} 23... Qf5
{[%clk 0:00:15.2]} 24. Nf3 {[%clk 0:01:06]} 24... Rg8 {[%clk 0:00:06.1]} 25. Re3
{[%clk 0:01:00]} 25... g5 {[%clk 0:00:06.8]} 26. Nd4 {[%clk 0:00:57.9]} 26...
Qf7 {[%clk 0:00:06.7]} 27. Bd6 {[%clk 0:00:56.9]} 27... Bxd6 {[%clk 0:00:07.1]}
28. Qxd6 {[%clk 0:00:58.8]} 28... Qe7 {[%clk 0:00:07.1]} 29. Qe5 {[%clk
0:00:49.6]} 29... Rf8 {[%clk 0:00:02.4]} 30. Rae1 {[%clk 0:00:50.8]} 30... Qf6
{[%clk 0:00:02.5]} 31. Qxd5 {[%clk 0:00:51.4]} 31... Rd8 {[%clk 0:00:02.3]} 32.
Rxe6+ {[%clk 0:00:48.5]} 32... Bxe6 {[%clk 0:00:03.4]} 33. Rxe6+ {[%clk
0:00:50.4]} 33... Qe7 {[%clk 0:00:03.7]} 34. Rxe7+ {[%clk 0:00:51]} 34... Kxe7
{[%clk 0:00:05]} 35. Qe6# {[%clk 0:00:52.9]} 1-0

[Event "*** Titled Tuesday 3|2 Blitz"]
[Site "Chess.com"]
[Date "2016.09.06"]
[Round "8"]
[White "Anton_Demchenko"]
[Black "Usurpov"]
[Result "1-0"]
[WhiteElo "2587"]
[BlackElo "2320"]
[TimeControl "180+2"]
[EndTime "12:40:32 PDT"]
[Termination "Anton_Demchenko won on time"]

1. e4 {[%clk 0:03:01.9]} 1... c5 {[%clk 0:03:00]} 2. Nf3 {[%clk 0:03:02.8]} 2...
Nc6 {[%clk 0:03:00.3]} 3. Nc3 {[%clk 0:03:03.6]} 3... e6 {[%clk 0:03:00.5]} 4.
d4 {[%clk 0:03:03.9]} 4... cxd4 {[%clk 0:03:01.6]} 5. Nxd4 {[%clk 0:03:05.8]}
5... Nf6 {[%clk 0:03:02.7]} 6. Nxc6 {[%clk 0:03:04.9]} 6... bxc6 {[%clk
0:03:03.2]} 7. e5 {[%clk 0:03:06.8]} 7... Nd5 {[%clk 0:03:04]} 8. Ne4 {[%clk
0:03:08.7]} 8... Ba6 {[%clk 0:03:03.7]} 9. c4 {[%clk 0:03:00.8]} 9... Bb4+
{[%clk 0:02:59.4]} 10. Bd2 {[%clk 0:02:57.8]} 10... Qh4 {[%clk 0:02:59]} 11. Qf3
{[%clk 0:02:53.6]} 11... f5 {[%clk 0:02:51.7]} 12. Nd6+ {[%clk 0:02:37.8]} 12...
Bxd6 {[%clk 0:02:45.1]} 13. cxd5 {[%clk 0:02:39.1]} 13... Bxf1 {[%clk
0:02:26.7]} 14. Rxf1 {[%clk 0:02:35.8]} 14... Bxe5 {[%clk 0:02:11.6]} 15. dxc6
{[%clk 0:02:35.6]} 15... dxc6 {[%clk 0:01:21.3]} 16. Qxc6+ {[%clk 0:02:33.2]}
16... Kf7 {[%clk 0:01:21.2]} 17. Qd7+ {[%clk 0:02:30.5]} 17... Kf6 {[%clk
0:01:20]} 18. O-O-O {[%clk 0:02:15]} 18... Rhd8 {[%clk 0:01:09.3]} 19. Qb5
{[%clk 0:01:30.7]} 19... Rdc8+ {[%clk 0:00:41.9]} 20. Bc3 {[%clk 0:01:14]} 20...
Bxc3 {[%clk 0:00:34.7]} 21. bxc3 {[%clk 0:01:15.1]} 21... Rxc3+ {[%clk
0:00:27.3]} 22. Kb2 {[%clk 0:01:14.3]} 22... Rac8 {[%clk 0:00:21.7]} 23. Rd6
{[%clk 0:00:57.4]} 23... R3c5 {[%clk 0:00:12.9]} 24. Qd7 {[%clk 0:00:51.8]}
24... Qe4 {[%clk 0:00:12.3]} 25. Rfd1 {[%clk 0:00:23.6]} 25... Rb8+ {[%clk
0:00:12.8]} 26. Ka1 {[%clk 0:00:21.4]} 26... Rcb5 {[%clk 0:00:12.9]} 27. R6d3
{[%clk 0:00:12.2]} 27... Qe5+ {[%clk 0:00:11.8]} 28. Qd4 {[%clk 0:00:12.7]}
28... Qxd4+ {[%clk 0:00:08.9]} 29. Rxd4 {[%clk 0:00:14.6]} 1-0

[Event "*** Titled Tuesday 3|2 Blitz"]
[Site "Chess.com"]
[Date "2016.09.06"]
[Round "8"]
[White "ilya261991"]
[Black "Sanan_Sjugirov"]
[Result "1/2-1/2"]
[WhiteElo "2499"]
[BlackElo "2706"]
[TimeControl "180+2"]
[EndTime "12:40:39 PDT"]
[Termination "Game drawn by repetition"]

1. d4 {[%clk 0:03:02]} 1... Nf6 {[%clk 0:03:01]} 2. c4 {[%clk 0:03:02.6]} 2...
e6 {[%clk 0:03:02.4]} 3. Nf3 {[%clk 0:03:03]} 3... d5 {[%clk 0:03:03]} 4. Nc3
{[%clk 0:03:00.1]} 4... Nbd7 {[%clk 0:03:04]} 5. Bf4 {[%clk 0:02:58.7]} 5...
dxc4 {[%clk 0:03:03.5]} 6. e3 {[%clk 0:02:57.9]} 6... Bd6 {[%clk 0:03:02.8]} 7.
Bxd6 {[%clk 0:02:56.8]} 7... cxd6 {[%clk 0:03:03.8]} 8. Bxc4 {[%clk 0:02:58.4]}
8... O-O {[%clk 0:03:04.6]} 9. O-O {[%clk 0:02:58.7]} 9... b6 {[%clk 0:03:02.5]}
10. Rc1 {[%clk 0:02:54.3]} 10... Bb7 {[%clk 0:03:03.2]} 11. Qe2 {[%clk
0:02:55.9]} 11... Qe7 {[%clk 0:02:59.6]} 12. Ba6 {[%clk 0:02:56.7]} 12... Rab8
{[%clk 0:02:36]} 13. Bxb7 {[%clk 0:02:54.3]} 13... Rxb7 {[%clk 0:02:37.9]} 14.
Qa6 {[%clk 0:02:54.8]} 14... Nb8 {[%clk 0:02:37.5]} 15. Qd3 {[%clk 0:02:48.9]}
15... a6 {[%clk 0:02:35.3]} 16. Ne4 {[%clk 0:02:46.6]} 16... Nxe4 {[%clk
0:02:28.6]} 17. Qxe4 {[%clk 0:02:47.5]} 17... Rc7 {[%clk 0:02:15.1]} 18. Rxc7
{[%clk 0:02:24]} 18... Qxc7 {[%clk 0:02:15.8]} 19. Ng5 {[%clk 0:02:24.6]} 19...
g6 {[%clk 0:02:13.2]} 20. Qh4 {[%clk 0:02:25.5]} 20... h5 {[%clk 0:02:13.2]} 21.
g4 {[%clk 0:02:26.7]} 21... Kg7 {[%clk 0:01:54.1]} 22. Ne4 {[%clk 0:02:05]}
22... hxg4 {[%clk 0:01:36.9]} 23. Qf6+ {[%clk 0:02:04.4]} 23... Kg8 {[%clk
0:01:37.5]} 24. Qf4 {[%clk 0:01:49.7]} 24... Nd7 {[%clk 0:01:22.3]} 25. Qxd6
{[%clk 0:01:48.4]} 25... Qc2 {[%clk 0:01:01.8]} 26. Qxd7 {[%clk 0:01:15.9]}
26... Qxe4 {[%clk 0:01:02.6]} 27. Rc1 {[%clk 0:01:16.8]} 27... Kg7 {[%clk
0:00:56.5]} 28. Qc6 {[%clk 0:01:17.6]} 28... Qd3 {[%clk 0:00:40.8]} 29. Qxb6
{[%clk 0:01:18.2]} 29... Qd2 {[%clk 0:00:36]} 30. Qc7 {[%clk 0:01:10.3]} 30...
Qxb2 {[%clk 0:00:34.3]} 31. a4 {[%clk 0:01:11.5]} 31... Rb8 {[%clk 0:00:33]} 32.
Qe5+ {[%clk 0:01:05.9]} 32... Kg8 {[%clk 0:00:33.6]} 33. Rc7 {[%clk 0:00:54.4]}
33... Rf8 {[%clk 0:00:27.4]} 34. a5 {[%clk 0:00:49.2]} 34... Qb1+ {[%clk
0:00:24.5]} 35. Kg2 {[%clk 0:00:48.7]} 35... Qd1 {[%clk 0:00:25.4]} 36. Qe4
{[%clk 0:00:44.3]} 36... Qa4 {[%clk 0:00:23.2]} 37. Qe5 {[%clk 0:00:39.7]} 37...
Qd1 {[%clk 0:00:24.1]} 38. Qe4 {[%clk 0:00:40.1]} 38... Qa4 {[%clk 0:00:21.4]}
39. Qe5 {[%clk 0:00:38.5]} 39... Qd1 {[%clk 0:00:22.2]} 40. Qe4 {[%clk
0:00:39.6]} 40... Qa4 {[%clk 0:00:12.1]} 41. Qe5 {[%clk 0:00:40.4]} 41... Qd1
{[%clk 0:00:09.7]} 42. Qe4 {[%clk 0:00:41.6]} 1/2-1/2